Cogmind - Beta 9.6 @@@ ROGUE MODE // 2020.06.05 @ 06:21:04 Player: Teratos Result: Self-destructed Performance ------------- Evolutions (1) 500 Regions Visited (2) 400 Robots Destroyed (23) 115 Value Destroyed (493) 493 Prototype IDs (0) 0 Alien Tech Used (0) 0 Bonus (16) 16 TOTAL SCORE: 1524 Bonus ------- High Alert Combat Kills 16 Cogmind --------- Core Integrity 301/400 Matter 296/300 Energy 265/265 System Corruption 0% Temperature Cool (6) Movement Walking (150) Ox1 Location -9/Materials Parts ------- > --- POWER (1) -------- Improved Ion Engine > --- PROPULSION (2) --- Aluminum Leg > --- UTILITY (3) ------ Small Storage Unit Sensor Array > --- WEAPON (3) ------- (None) > --- INVENTORY (6) ---- Ion Engine Ion Engine Light Ion Engine Peak State ------------ > --- POWER ------------ Improved Ion Engine > --- PROPULSION ------- Aluminum Leg Aluminum Leg > --- UTILITY ---------- Small Storage Unit Sensor Array > --- WEAPON ----------- Light Assault Rifle Light Assault Rifle > --- INVENTORY -------- Ion Engine Ion Engine Light Ion Engine [Rating: 8] Favorites ----------- Power Ion Engine Engine Ion Engine Propulsion Aluminum Leg Leg Aluminum Leg Hover Unit Hover Unit Utility Small Storage Unit Device Sensor Array Storage Small Storage Unit Weapon Light Assault Rifle Energy Gun EM Pulse Gun Ballistic Gun Light Assault Rifle Special Melee Weapon Datajack Build | -11 -10 -9 ------- Run | Scr Mat Mat Slots Evolved 2 | . . 2 Power . | . . . Propulsion . | . . . Utility 1 | . . 1 Weapon 1 | . . 1 Parts Attached 23 | 4 15 4 Power 5 | 1 3 1 Engine 5 | 1 3 1 Core . | . . . Reactor . | . . . Propulsion 5 | . 5 . Treads . | . . . Leg 2 | . 2 . Wheel . | . . . Hover 3 | . 3 . Flight . | . . . Utility 2 | 1 1 . Device 1 | . 1 . Storage 1 | 1 . . Processor . | . . . Hackware . | . . . Protection . | . . . Artifact . | . . . Weapon 11 | 2 6 3 Energy Gun 4 | 1 2 1 Energy Cannon . | . . . Ballistic Gun 5 | 1 4 . Ballistic Cannon . | . . . Launcher . | . . . Special Weapon . | . . . Impact Weapon . | . . . Slashing Weapon . | . . . Piercing Weapon . | . . . Special Melee Weapon 2 | . . 2 Unidentified Prototypes . | . . . Parts Lost 12 | . 6 6 Power 1 | . 1 . Propulsion 2 | . 1 1 Utility . | . . . Weapon 9 | . 4 5 Highest Loss Streak 4 | . 3 4 Average Slot Usage (%) 73 | . 75 68 Engine 12 | . 12 11 Leg 11 | . 6 21 Hover 6 | . 10 . Device 7 | . 5 11 Storage 13 | . 14 11 Energy Gun 7 | . 10 1 Ballistic Gun 13 | . 15 9 Special Melee Weapon 1 | . . 3 Naked Turns . | . . . Heaviest Build 15 | 10 12 15 Greatest Support 20 | 3 20 20 Greatest Overweight (x) 3 | 3 3 . Average Overweight (x) . | 2 1 . Largest Inventory Capacity 6 | 6 6 6 Average Capacity 5 | 5 6 6 Most Carried 3 | . 2 3 Average Carried 1 | . 1 2 Final Capacity 6 | 6 6 6 Final Carried 3 | . 2 3 Class Distribution -------------------- 54% | Mutant 45% | Scavenger-Mutant Dominant Class ---------------- Scavenger-Mutant | -10/Materials Mutant | -9/Materials Resources | -11 -10 -9 ----------- Run | Scr Mat Mat Matter Collected 482 | 202 260 20 Remotely . | . . . Salvage Created 740 | . 685 55 Parts 48 | . 46 2 Haulers Intercepted 1 | . 1 . Recyclers Shooed 1 | . 1 . Parts Field Recycled . | . . . Retrieved Matter . | . . . Parts Self-Destructed . | . . . Prevented . | . . . Kills | -11 -10 -9 ------- Run | Scr Mat Mat Combat Hostiles Destroyed 18 | . 16 2 Guns 18 | . 16 2 Classes Destroyed 5 | . 5 . Worker 2 | . 2 . Hauler 1 | . 1 . Watcher 2 | . 2 . Swarmer 7 | . 6 1 Grunt 11 | . 10 1 Best Kill Streak 8 | . 8 1 Combat Bots Only 7 | . 7 1 Max Kills in Single Turn 2 | . 2 1 Gunslinging 1 | . 1 . Exploded . | . . . Melee . | . . . Uniques/NPCs Destroyed . | . . . Combat | -11 -10 -9 -------- Run | Scr Mat Mat Damage Taken 1208 | . 751 457 Core 262 | . 163 99 Absorbed by Shields . | . . . Core Remaining (%) 67 | 100 34 . Volleys Fired 77 | . 60 17 Largest 2 | . 2 2 Hottest 80 | . 80 45 Shots Fired 137 | . 116 21 Gun 137 | . 116 21 Cannon . | . . . Launcher . | . . . Special . | . . . Kinetic 93 | . 79 14 Thermal 16 | . 16 . Explosive . | . . . Electromagnetic 28 | . 21 7 Robot Hit Streak 9 | . 8 9 Robot Miss Streak 7 | . 7 3 Penetration Max . | . . . Secondary Targets 4 | . 4 . Max Gunslinging Chain 1 | . 1 . Shots Hit Robots 80 | . 65 15 Core Hits 40 | . 34 6 Critical Hits . | . . . Critical Kills . | . . . Critical Parts Destroyed . | . . . Melee Attacks 1 | . . 1 Impact . | . . . Slashing . | . . . Piercing . | . . . Sneak Attacks 1 | . . 1 Combat Hostiles . | . . . Follow-up Attacks . | . . . Damage Inflicted 836 | . 678 158 Guns 836 | . 678 158 Cannons . | . . . Explosions . | . . . Melee . | . . . Ramming . | . . . Kinetic 428 | . 345 83 Thermal 107 | . 107 . Explosive . | . . . Electromagnetic 301 | . 226 75 Impact . | . . . Slashing . | . . . Piercing . | . . . Highest Corruption . | . . . Average Corruption . | . . . Corruption Purged . | . . . Overload Shots . | . . . Overflow Damage . | . . . Projectiles . | . . . Explosions . | . . . Melee . | . . . Knockbacks . | . . . Impact . | . . . Kinetic . | . . . Secondary . | . . . Self-Inflicted Damage . | . . . Shots . | . . . Rammed . | . . . Targets Rammed . | . . . Kicked . | . . . Crushed . | . . . Highest Temperature 180 | . 180 6 Average Temperature 51 | . 52 4 Received Heat Transfer 411 | . 309 102 Siege Activations . | . . . Robots Corrupted . | . . . Combat Hostiles . | . . . Parts Fried . | . . . Impact Corruptions . | . . . Robots Melted . | . . . Combat Hostiles . | . . . Parts Melted . | . . . Heat Transferred 250 | . 250 . Parts Sabotaged . | . . . Parts Stolen . | . . . Parts Stripped . | . . . Power Chain Reactions . | . . . Missiles Intercepted . | . . . Alert | -11 -10 -9 ------- Run | Scr Mat Mat Peak Influence 411 | . 411 213 Average Influence 172 | . 187 192 Maximum Alert Level 2 | . 2 1 Low Security (%) 67 | 100 51 90 Level 1 27 | . 40 9 Level 2 4 | . 7 . Level 3 . | . . . Level 4 . | . . . Level 5 . | . . . High Security . | . . . Max Security . | . . . Squads Dispatched 5 | . 3 2 Investigation 3 | . 2 1 Extermination . | . . . Reinforcement 2 | . 1 1 Assault . | . . . Garrison . | . . . Intercept . | . . . Construction Impeded . | . . . Haulers Reinforced . | . . . Stealth | -11 -10 -9 --------- Run | Scr Mat Mat Distress Signals 2 | . 2 . Communications Jammed . | . . . Distress Signals . | . . . Times Spotted 36 | . 23 13 Peak Tracking Total 8 | . 4 8 Tactical Retreats 1 | . . 1 Traps | -11 -10 -9 ------- Run | Scr Mat Mat Traps Triggered . | . . . Indirectly . | . . . Trap Hack Attempts . | . . . Triggered . | . . . Disarmed . | . . . Reprogrammed . | . . . Reused . | . . . Traps Extracted . | . . . Installed . | . . . Triggered 1 | . 1 . Machines | -11 -10 -9 ---------- Run | Scr Mat Mat Machines Disabled . | . . . Max in Single Turn . | . . . Machines Sabotaged . | . . . Garrisons Compromised . | . . . Overloaded Fab Kills . | . . . Fab Network Shutdowns . | . . . Hacking | -11 -10 -9 --------- Run | Scr Mat Mat Machines Accessed 3 | . 2 1 Terminals 3 | . 2 1 Fabricators . | . . . Repair Stations . | . . . Recycling Units . | . . . Scanalyzers . | . . . Garrison Access . | . . . Total Hacks 9 | . 6 3 Successful 3 | . 1 2 Failed 6 | . 5 1 Catastrophic 2 | . 2 . Database Lockouts . | . . . Manual . | . . . Terminals 9 | . 6 3 Fabricators . | . . . Repair Stations . | . . . Recycling Units . | . . . Scanalyzers . | . . . Garrison Access . | . . . Terminal Hacks 3 | . 1 2 Emergency Access Points 1 | . 1 . Alert Level 2 | . . 2 Fabricator Hacks . | . . . Repair Station Hacks . | . . . Recycling Unit Hacks . | . . . Scanalyzer . | . . . Garrison Access Hacks . | . . . Unauthorized Hacks . | . . . Terminals . | . . . Fabricators . | . . . Repair Stations . | . . . Recycling Units . | . . . Scanalyzers . | . . . Garrison Access . | . . . Data Cores Recovered . | . . . Used . | . . . Hacking Detections 3 | . 2 1 Full Trace Events 3 | . 2 1 Feedback Events . | . . . Feedback Blocked . | . . . Robot Schematics Acquired . | . . . Robots Built . | . . . Matter . | . . . Time . | . . . Total Robot Build Rating . | . . . Part Schematics Acquired . | . . . Parts Built . | . . . Matter . | . . . Time . | . . . Total Part Build Rating . | . . . Parts Repaired . | . . . Time . | . . . Parts Recycled . | . . . Recycled Matter . | . . . Retrieved Matter . | . . . Retrieved Components . | . . . Parts Scanalyzed . | . . . Part Schematics Acquired . | . . . Parts Damaged . | . . . Bothacking | -11 -10 -9 ------------ Run | Scr Mat Mat Used RIF Installer . | . . . Robots Hacked . | . . . Non-combat . | . . . Combat . | . . . Robot Hacks Applied . | . . . Relay Couplers Released . | . . . Robots Rewired . | . . . Allies Hacked . | . . . Hacks Repelled . | . . . Allies | -11 -10 -9 -------- Run | Scr Mat Mat Total Allies . | . . . Largest Group . | . . . Highest-Rated Group . | . . . Highest-Rated Ally . | . . . Total Orders . | . . . Ally Attacks . | . . . Total Damage . | . . . Kills . | . . . Allies Corrupted . | . . . Allies Melted . | . . . Intel | -11 -10 -9 ------- Run | Scr Mat Mat Robot Analysis Total . | . . . Derelict Logs Recovered . | . . . Drone Launches . | . . . Drone Recoveries . | . . . Exploration | -11 -10 -9 ------------- Run | Scr Mat Mat Turns Passed 643 | 55 394 194 Spaces Moved 314 | 33 156 125 Core 94 | 33 61 . Treads . | . . . Legs 168 | . 43 125 Wheels . | . . . Hover 52 | . 52 . Flight . | . . . Fastest Speed 50 | 50 56 120 Average Speed 129 | 153 131 120 Slowest Speed 200 | 200 200 120 Overloaded Moves . | . . . Propulsion Burnouts . | . . . Robots Hopped . | . . . Cave-ins Triggered . | . . . Exploration Rate (%) 15 | 3 29 13 Regions Visited 2 Branch Regions . Pre-discovered Areas . | . . . Known Exits Taken . | . . . Unknown Exits Taken 2 | 1 1 . Scrap Searched . | . . . Spaces Dug . | . . . Terrain Destroyed . | . . . Melee . | . . . Projectile . | . . . AOE . | . . . Actions | -11 -10 -9 --------- Run | Scr Mat Mat Total 422 | 36 239 147 Wait 5 | . 5 . Move 312 | 32 155 125 Hop . | . . . Pick Up . | . . . Fast Attach 20 | 4 13 3 Attach . | . . . Detach . | . . . Swap 3 | . 2 1 Drop 4 | . 4 . Fire 77 | . 60 17 Melee 1 | . . 1 Ram . | . . . Kick . | . . . Crush . | . . . Escape Stasis . | . . . Rewire . | . . . Trap . | . . . Miscellaneous . | . . . Route ------- -11/Scrapyard -10/Materials -9/Materials (discovered 1 exit: [*Sto]) History --------- Turn | Location | Event 28 | -11/Scrapyard | Discovered new exit (range 12) 56 | -11/Scrapyard | Entered Materials 312 | -10/Materials | Destroyed 7 combat bots 319 | -10/Materials | Lost 3 parts (1n2w) 398 | -10/Materials | Core integrity fell below 50% 442 | -10/Materials | Lost 3 parts (1p2w) 446 | -10/Materials | Discovered new exit (range 4) 450 | -10/Materials | Entered another Materials area 450 | -9/Materials | Evolved 2 slots: Utility x1, Weapon x1 619 | -9/Materials | Discovered new exit (range 16) 644 | -9/Materials | Self-destructed Last Messages --------------- Current Alert Level: Low Security >>Alert(Check) Current Alert Level: Low Security 00479_ ALERT: Suspicious activity at Terminal M007. Dispatching Investigation squad. 00531_ Lgt. Assault Rifle destroyed. 00537_ G-34 Mercenary destroyed. 00542_ Lgt. Assault Rifle destroyed. 00582_ Acquired Datajack. 00614_ Sneak attack on R-06 Scavenger. 00614_ Jacked R-06 Scavenger... 00615_ Datajack destroyed. 00619_ EXIT=FOUND 00620_ Acquired EM Shotgun. 00637_ Aluminum Leg destroyed. 00638_ S-10 Pest destroyed. 00639_ Acquired 20 matter. 00640_ K-01 Serf collects debris. 00642_ EM Shotgun destroyed. 00643_ K-01 Serf collects debris. Map ----- +----------------------------------------------------+ | ?????????????????????????????????????????????????? | | ?????????????????????????????????????????????????? | | ?????????????????????????????????????????????????? | | ?????????????????????????????????????????????????? | | ?????????????????????????????????????????????????? | | ?????????????????????????????????????????????????? | | ?????????????????????????????????????????????????? | | ?????????????????????????????????????????????????? | | ?????????????????????????????????????????????????? | | ?????????????????????????????????????????????????? | | ?????????????????????????????????????????????????? | | ?????????????????????????????????????????????????? | | ?????????????????????????????????????????T" ????? | | ?????????????????????????????????????? #???? | | ????????????????????????????????????# "???? | | ????????????????????#+??????????????# ???? | | ????????????????????# ??????????????# "???? | | ????????????????????# ??????????????? !! #???? | | ????????????????????# ???????????????? !! #???? | | ????????????????????# ????????????????? ! #???? | | ????????????????????# ?????????????????? #???? | | ????????????????????# ###???????????????? +???? | | ????????????????????# ????????????????# #???? | | ????????????????????# #????????????????# #???? | | ????????????# % ## k*#########?######?# #???? | | ????????????# = + [g@ s #?# ?# ##### | | ????????????#= = ## Y##""" #?# # % | | ????????????????????#? ##"""s = #?# # ##### | | ????????????????????# ##""" #?# + #?# | | ???????????????????## ?## #?# # #?# " | | ?????????????####+## ##g#+####?# # #?# " | | ????????? ###########?# #?# " | | ????????< #????## ### | | ????????? ########## ##+####### #????# #?? | | ???????????????????###### ????# ###### #### | | ????????????????????????# ???# T | | ????????????????????????# ""??# ### #### | | ????????????????????????# T"#?# #?# #??? | | ????????????????????????# ""#?# #####+#####? | | ????????????????????????# = #?###### #? | | ????????????????????????########??????# ! #? | | ??????????????????????????????????????#/! #? | | ??????????????????????????????????????# #? | | ??????????????????????????????????????###########? | | | | | | | | | | | | | +----------------------------------------------------+ Best States ------------- Heat Dissipation 28 Energy Generation 12 Energy Capacity 265 Matter Stores 300 Matter Capacity 300 Sight Range 16 Robot Scan Range 10 Terrain Scan Density 10 Evasion (%) 53 Item Schematics ----------------- None Robot Schematics ------------------ None Fabricated ------------ Nothing Alien Tech Used ----------------- None Achievements -------------- None Challenges ------------ None Game ------ Seed MappingMyomerMembrane Manual? 0 Play Time 00:07:36 Cumulative 30.4 hours Start 2020.06.05 @ 04:52:59 End 2020.06.05 @ 06:21:04 Sessions 1 Manual Loads 0 Difficulty Rogue Special Mode None Game No. 63 Rogue 63 Adventurer 0 Explorer 0 Win Type - Total 0 Types 0/0/0/0/0/0/0 Lore% 21 Gallery% 23 Achievement% 21 Wizard Run 0 Options --------- ASCII 0 Keyboard 0 Movement Numpad Keybinds 0 Fullscreen 1 Font 18/SmallcapsGlow Map View 76x50 Tactical HUD 1 Map Filters NONE Filters NONE Steam 1 RUN: 71105214-186b-43cf-b7fc-af5d4bcb84c5